Workbook

Sheet Page 1
A1: 10-ти дневное меню для обеспечения горячим питанием (завтраки) обучающихся возрастной группы 12-18 лет МОУ
A2: Утверждаю: | F2: Согласовано:
A3: Директор: | F3: Директор:
A4: ___________________ | F4: ___________________
A5: 1 день
A6: Прием пищи, наименование блюда | B6: Масса порции | C6: Пищевые вещества | F6: Энергети-ческая ценность, ккал | G6: № рецеп-туры | H6: Сборник рецептур
C7: Белки, г | D7: Жиры, г | E7: Углеводы, г
A8: Завтрак
A9: ОВОЩИ ПО СЕЗОНУ (ОГУРЕЦ СОЛЕНЫЙ или ОГУРЕЦ СВЕЖИЙ)№ 1 | B9: 100 | C9: 0.5 | D9: 0.1 | E9: 1.01 | F9: 6.0 | G9: 1
A10: ГУЛЯШ ИЗ МЯСА ПТИЦЫ №311К | B10: 100 | C10: 9.60 | D10: 11.60 | E10: 7.50 | F10: 175.90 | G10: 311К
A11: МАКАРОННЫЕ ИЗДЕЛИЯ ОТВАРНЫЕ №203 | B11: 170 | C11: 4.19 | D11: 6.50 | E11: 32.00 | F11: 221.80 | G11: 203 | H11: 2017
A12: КОМПОТ ИЗ СУХОФРУКТОВ №53 | B12: 200 | C12: 0.30 | D12: 0.00 | E12: 16.00 | F12: 66.40 | G12: 53
A13: ХЛЕБ ПШЕНИЧНЫЙ №6 | B13: 50 | C13: 3.95 | D13: 0.50 | E13: 21.15 | F13: 116.33 | G13: 6
A15: Итого за прием пищи: | B15: =B13+B12+B11+B10+B9 -> 620 | C15: =C13+C12+C11+C10+C9 -> 18.54 | D15: =D13+D12+D11+D10+D9 -> 18.66 | E15: =E13+E12+E11+E10+E9 -> 77.66 | F15: =F13+F12+F11+F10+F9 -> 586.43
A16: Утверждаю: | F16: Согласовано:
A17: Директор: | F17: Директор:
A18: ___________________ | F18: ___________________
A19: 2 день
A20: Прием пищи, наименование блюда | B20: Масса порции | C20: Пищевые вещества | F20: Энергети-ческая ценность, ккал | G20: № рецеп-туры | H20: Сборник рецептур
C21: Белки, г | D21: Жиры, г | E21: Углеводы, г
A22: Завтрак
A23: СВЕКЛА ОТВАРНАЯ №2 | B23: 100/2 | C23: 1.5 | D23: 0.1 | E23: 8.5 | F23: 40.7 | G23: 2
A24: ТЕФТЕЛИ С РИСОМ (говядина) С СОУСОМ ТОМАТНЫМ №307/363 | B24: 100/30 | C24: 12.70 | D24: 12.80 | E24: 15.50 | F24: 227.30 | G24: 307/363
A25: КАША ГРЕЧНЕВАЯ ВЯЗКАЯ (ГАРНИР) №303 | B25: 160 | C25: 4.90 | D25: 4.80 | E25: 27.30 | F25: 145.84 | G25: 303
A26: ЧАЙ С САХАРОМ № 685 | B26: 200 | C26: 0.20 | D26: 0.00 | E26: 15.00 | F26: 58.00 | G26: 685 | H26: 2011
A27: ХЛЕБ РЖАНО-ПШЕНИЧНЫЙ №7 | B27: 50 | C27: 3.13 | D27: 0.50 | E27: 20.63 | F27: 99.00 | G27: 7
A28: Итого за прием пищи: | B28: 642 | C28: =SUM(C23:C27) -> 22.4 | D28: =SUM(D23:D27) -> 18.2 | E28: =SUM(E23:E27) -> 86.9 | F28: =SUM(F23:F27) -> 570.8
A29: Утверждаю: | F29: Согласовано:
A30: Директор: | F30: Директор:
A31: ___________________ | F31: ___________________
A32: 3 день
A33: Прием пищи, наименование блюда | B33: Масса порции | C33: Пищевые вещества | F33: Энергети-ческая ценность, ккал | G33: № рецеп-туры | H33: Сборник рецептур
C34: Белки, г | D34: Жиры, г | E34: Углеводы, г
A35: Завтрак
A36: ОВОЩИ ПО СЕЗОНУ (ПОМИДОР СОЛЕНЫЙ или ПОМИДОР СВЕЖИЙ) № 27 | B36: 100 | C36: 1.1 | D36: 0.0 | E36: 2.3 | F36: 18.0 | G36: 27
A37: ПЛОВ ИЗ ПТИЦЫ № 492 | B37: 220 | C37: 16.50 | D37: 22.44 | E37: 38.70 | F37: 432.25 | G37: 492
A38: КОМПОТ ИЗ СУХОФРУКТОВ №53 | B38: 200 | C38: 0.30 | D38: 0.00 | E38: 16.00 | F38: 66.40 | G38: 53
A39: ХЛЕБ РЖАНО-ПШЕНИЧНЫЙ №7 | B39: 50 | C39: 3.13 | D39: 0.50 | E39: 20.63 | F39: 99.00 | G39: 7
A40: Итого за прием пищи: | B40: =SUM(B36:B39) -> 570 | C40: =SUM(C36:C39) -> 21.03 | D40: =SUM(D36:D39) -> 22.94 | E40: =SUM(E36:E39) -> 77.63 | F40: =SUM(F36:F39) -> 615.65
A41: Утверждаю: | F41: Согласовано:
A42: Директор: | F42: Директор:
A43: ___________________ | F43: ___________________
A44: 4 день
A45: Прием пищи, наименование блюда | B45: Масса порции | C45: Пищевые вещества | F45: Энергети-ческая ценность, ккал | G45: № рецеп-туры | H45: Сборник рецептур
C46: Белки, г | D46: Жиры, г | E46: Углеводы, г
A47: Завтрак
A48: БЛЮДО ИЗ РЫБЫ (РЫБА,ТУШЕНАЯ В ТОМАТЕ С ОВОЩАМИ №229 или КОТЛЕТЫ РЫБНЫЕ В ТОМАТНОМ СОУСЕ ТТК№106 ) | B48: 100 | C48: 10,2/12,9 | D48: 12,9/13,10 | E48: 13,3/14,4 | F48: 175,00/176,60 | G48: 229/106 | H48: 2017
A49: КАРТОФЕЛЬ ОТВАРНОЙ С МАСЛОМ №310 | B49: 200 | C49: 3.80 | D49: 5.74 | E49: 30.68 | F49: 192.80 | G49: 310 | H49: 2017
A50: ЧАЙ С САХАРОМ И ЛИМОНОМ №686 | B50: 200 | C50: 0.30 | D50: 0.00 | E50: 15.20 | F50: 60.00 | G50: 686 | H50: 2011
A51: ХЛЕБ ПШЕНИЧНЫЙ №6 | B51: 50 | C51: 3.95 | D51: 0.50 | E51: 21.15 | F51: 116.33 | G51: 6
A52: Итого за прием пищи: | B52: =SUM(B48:B51) -> 550 | C52: 18,25/20,95 | D52: 19,14/19,34 | E52: 80,33/81,43 | F52: 544,13/545,73
A53: Утверждаю: | F53: Согласовано:
A54: Директор: | F54: Директор:
A55: ___________________ | F55: ___________________
A56: 5 день
A57: Прием пищи, наименование блюда | B57: Масса порции | C57: Пищевые вещества | F57: Энергети-ческая ценность, ккал | G57: № рецеп-туры | H57: Сборник рецептур
C58: Белки, г | D58: Жиры, г | E58: Углеводы, г
A59: Завтрак
A60: КАША МОЛОЧНАЯ ИЗ РИСА И ПШЕНА ДРУЖБА С МАСЛОМ №175 | B60: 180 | C60: 13.60 | D60: 13.90 | E60: 31.25 | F60: 270.00 | G60: 175
A61: БУТЕРБРОД С ПОВИДЛОМ №2 | B61: 30/20 | C61: 5.00 | D61: 4.40 | E61: 25.20 | F61: 156.00 | G61: 2 | H61: 2017
A62: ЧАЙ С САХАРОМ № 685 | B62: 200 | C62: 0.20 | D62: 0.00 | E62: 15.00 | F62: 58.00 | G62: 685 | H62: 2011
A63: ФРУКТЫ СВЕЖИЕ (ЯБЛОКО) №338 | B63: 150 | C63: 0.80 | D63: 0.80 | E63: 17.90 | F63: 85.50 | G63: 338 | H63: 2017
A64: Итого за прием пищи: | B64: 580 | C64: =SUM(C60:C63) -> 19.60 | D64: =SUM(D60:D63) -> 19.10 | E64: =SUM(E60:E63) -> 89.35 | F64: =SUM(F60:F63) -> 569.50
A65: Утверждаю: | F65: Согласовано:
A66: Директор: | F66: Директор:
A67: ___________________ | F67: ___________________
A68: 6 день
A69: Прием пищи, наименование блюда | B69: Масса порции | C69: Пищевые вещества | F69: Энергети-ческая ценность, ккал | G69: № рецеп-туры | H69: Сборник рецептур
C70: Белки, г | D70: Жиры, г | E70: Углеводы, г
A71: Завтрак
A72: КАША МОЛОЧНАЯ ИЗ МАННОЙ КРУПЫ №181 | B72: 180 | C72: 9.50 | D72: 9.20 | E72: 35.66 | F72: 238.06 | G72: 181
A73: БУТЕРБРОД С МАСЛОМ И СЫРОМ №3 | B73: 35/5/10 | C73: 5.80 | D73: 8.00 | E73: 11.60 | F73: 147.00 | G73: 3 | H73: 2017
A74: КОФЕЙНЫЙ НАПИТОК С МОЛОКОМ № 379 | B74: 200 | C74: 3.16 | D74: 2.66 | E74: 15.94 | F74: 100.60 | G74: 379
A75: ФРУКТЫ СВЕЖИЕ (ЯБЛОКО)№338 | B75: 150 | C75: 0.80 | D75: 0.80 | E75: 17.90 | F75: 85.50 | G75: 338 | H75: 2017
A76: Итого за прием пищи: | B76: 580 | C76: =SUM(C72:C75) -> 19.26 | D76: =SUM(D72:D75) -> 20.66 | E76: =SUM(E72:E75) -> 81.10 | F76: =SUM(F72:F75) -> 571.16
A77: Утверждаю: | F77: Согласовано:
A78: Директор: | F78: Директор:
A79: ___________________ | F79: ___________________
A80: 7 день
A81: Прием пищи, наименование блюда | B81: Масса порции | C81: Пищевые вещества | F81: Энергети-ческая ценность, ккал | G81: № рецеп-туры | H81: Сборник рецептур
C82: Белки, г | D82: Жиры, г | E82: Углеводы, г
A83: Завтрак
A84: ОВОЩИ ПО СЕЗОНУ (КАПУСТА КВАШЕНАЯ №3 или ИКРА КАБАЧКОВАЯ №88 | B84: 100 | C84: 1.80 | D84: 8.60 | E84: 7.50 | F84: 115.40 | G84: 3/88
A85: КОТЛЕТА РУБЛЕНАЯ С БЕЛОКОЧАННОЙ КАПУСТОЙ (говядина) С СОУСОМ ТОМАТНЫМ № 455/363 | B85: 100/30 | C85: 10.90 | D85: 9.80 | E85: 22.40 | F85: 210.60 | G85: 455/363
A86: КАША ГРЕЧНЕВАЯ ВЯЗКАЯ (ГАРНИР) №303 | B86: 160 | C86: 4.90 | D86: 4.80 | E86: 27.30 | F86: 145.84 | G86: 303
A87: КОМПОТ ИЗ СУХОФРУКТОВ №53 | B87: 200 | C87: 0.30 | D87: 0.00 | E87: 16.00 | F87: 66.40 | G87: 53
A88: ХЛЕБ ПШЕНИЧНЫЙ №6 | B88: 30 | C88: 2.37 | D88: 0.30 | E88: 14.49 | F88: 70.90 | G88: 6
A89: Итого за прием пищи: | B89: 620 | C89: =SUM(C84:C88) -> 20.27 | D89: =SUM(D84:D88) -> 23.50 | E89: =SUM(E84:E88) -> 87.69 | F89: =SUM(F84:F88) -> 609.14
A90: Утверждаю: | F90: Согласовано:
A91: Директор: | F91: Директор:
A92: ___________________ | F92: ___________________
A93: 8 день
A94: Прием пищи, наименование блюда | B94: Масса порции | C94: Пищевые вещества | F94: Энергети-ческая ценность, ккал | G94: № рецеп-туры | H94: Сборник рецептур
C95: Белки, г | D95: Жиры, г | E95: Углеводы, г
A96: Завтрак
A97: ОВОЩИ ПО СЕЗОНУ (ОГУРЕЦ СОЛЕНЫЙ или ОГУРЕЦ СВЕЖИЙ)№ 1 | B97: 100 | C97: 0.5 | D97: 0.1 | E97: 1.01 | F97: 6.0 | G97: 1
A98: ЖАРКОЕ ПО-ДОМАШНЕМУ № 259 | B98: 250 | C98: 14.30 | D98: 20.50 | E98: 53.40 | F98: 406.00 | G98: 259
A99: ЧАЙ С САХАРОМ № 685 | B99: 200 | C99: 0.20 | D99: 0.00 | E99: 15.00 | F99: 58.00 | G99: 685 | H99: 2011
A100: ХЛЕБ ПШЕНИЧНЫЙ | B100: 50 | C100: 3.95 | D100: 0.50 | E100: 21.15 | F100: 116.33 | G100: 6
A101: Итого за прием пищи: | B101: =SUM(B97:B100) -> 600 | C101: =SUM(C97:C100) -> 18.95 | D101: =SUM(D97:D100) -> 21.06 | E101: =SUM(E97:E100) -> 90.56 | F101: =SUM(F97:F100) -> 586.33
A102: Утверждаю: | F102: Согласовано:
A103: Директор: | F103: Директор:
A104: ___________________ | F104: ___________________
A105: 9 день
A106: Прием пищи, наименование блюда | B106: Масса порции | C106: Пищевые вещества | F106: Энергети-ческая ценность, ккал | G106: № рецеп-туры | H106: Сборник рецептур
C107: Белки, г | D107: Жиры, г | E107: Углеводы, г
A108: Завтрак
A109: КОТЛЕТЫ РУБЛЕНЫЕ ИЗ ПТИЦЫ С СОУСОМ ТОМАТНЫМ №294/363 | B109: 100/30 | C109: 12.20 | D109: 14.80 | E109: 15.40 | F109: 220.80 | G109: 294/363
A110: МАКАРОННЫЕ ИЗДЕЛИЯ ОТВАРНЫЕ №203 | B110: 170 | C110: 4.19 | D110: 6.50 | E110: 32.00 | F110: 221.80 | G110: 203 | H110: 2017
A111: ЧАЙ С САХАРОМ И ЛИМОНОМ №686 | B111: 200 | C111: 0.30 | D111: 0.00 | E111: 15.20 | F111: 60.00 | G111: 686 | H111: 2011
A112: ХЛЕБ ПШЕНИЧНЫЙ №6 | B112: 50 | C112: 3.95 | D112: 0.50 | E112: 21.15 | F112: 116.33 | G112: 6
A113: Итого за прием пищи: | B113: 550 | C113: =SUM(C109:C112) -> 20.64 | D113: =SUM(D109:D112) -> 21.80 | E113: =SUM(E109:E112) -> 83.75 | F113: =SUM(F109:F112) -> 618.93
A114: Утверждаю: | F114: Согласовано:
A115: Директор: | F115: Директор:
A116: ___________________ | F116: ___________________
A117: 10 день
A118: Прием пищи, наименование блюда | B118: Масса порции | C118: Пищевые вещества | F118: Энергети-ческая ценность, ккал | G118: № рецеп-туры | H118: Сборник рецептур
C119: Белки, г | D119: Жиры, г | E119: Углеводы, г
A120: Завтрак
A121: ЛАПШЕВНИК С ТВОРОГОМ С СОУСОМ МОЛОЧНЫМ №154 | B121: 250/30 | C121: 12.5 | D121: 16.6 | E121: 48.5 | F121: 321.1 | G121: 154
A122: ПЕЧЕНЬЕ №9 | B122: 30 | C122: 3.80 | D122: 4.10 | E122: 14.00 | F122: 90.50 | G122: 9
A123: ЧАЙ С САХАРОМ КАРКАДЕ №685К | B123: 200 | C123: 0.20 | D123: 0.00 | E123: 9.20 | F123: 42.00 | G123: 685К | H123: 2011
A124: ХЛЕБ ПШЕНИЧНЫЙ №6 | B124: 50 | C124: 3.95 | D124: 0.50 | E124: 21.15 | F124: 116.33 | G124: 6
A125: Итого за прием пищи: | B125: 560 | C125: =SUM(C121:C124) -> 20.45 | D125: =SUM(D121:D124) -> 21.2 | E125: =SUM(E121:E124) -> 92.85 | F125: 569.93
A126: ИТОГО ПО ПРИМЕРНОМУ МЕНЮ | L126: б
A127: Итого | C127: б | D127: ж | E127: уг | F127: ккал | N127: б 180-225
A128: Итого за период | C128: 199,02/201,72 | D128: 205,86/206,06 | E128: 840,65/841,75 | F128: 5807,84/5809,44
A129: Среднее значение за период | C129: 19,90/20,17 | D129: 20,59/20,61 | E129: 84,07/84,18 | F129: 580,78/580,94
A130: Соотношение пищевых веществ | C130: 1 | D130: 1 | E130: 4
A131: Сборник рецептур на продукцию для обучающихся во всех образовательных учреждениях / Под ред. М.П. Могильного и В.А. Тутельяна. - М.:ДеЛи плюс, 2017. - 543с.
A132: Сборник рецептур и кулинарных изделий для предприятий общественного питания при общеобразовательных школах / Под ред. В.Т. Лапшиной. - М.: Хлебпродинформ, 2004. - 640с.
A133: Сборник рецептур блюд и кулинарных изделий для обучающихся образовательных организаций. Сборник технических нормативов. ФГФУ НЦЗД Минздрава России, НИИ ГиОЗДиП / под редакцией член-корр. РАН, д.м.н., профессора В.Р. Кучмы - М.: Издатель Научный центр здоровья детей, 2016. - 560 с.
A134: Таблицы химического состава и калорийности российских продуктов питания: Справочник. - М.: ДеЛи принт, 2008. - 276с. Скурихин И.М., Тутельян В.А.
A135: Сборник рецептур блюд и кулинарных изделий для питания детей в дошкольных организациях / Под ред. М.П. Могильного и В.А. Тутельяна. - М.:ДеЛи принт, 2011. - 584с.

Sheet Г1 (7)
A3: У Т В Е Р Ж Д А Ю: | F3: С О Г Л А С О В А Н О:
A4: Директор ООО "Союз-К" | F4: Директор МБОУ "Куликовская СШ"
A5: ______________________ Д.Г. Киселев | F5: ____________________ О.В. Перегудова
C14: Примерное 10-ти дневное меню
C15: для обеспечения бесплатным
C16: питанием
C17: возрастной группы 12-18 лет
